bitfinex/quotes_SOLUSD_20260214
["timestamp","ask_amount","ask_price","bid_price","bid_amount"]
[1771096400918,0.5,87.999,87.96,2.89299553]
[1771096401286,0.5,87.999,87.961,11.36867475]
[1771096403687,11.36389463,87.998,87.961,11.36867475]
[1771096403895,0.5,87.997,87.961,11.36867475]
[1771096404797,0.5,87.997,87.96,2.89299553]
[1771096405301,0.5,87.997,87.961,11.36867475]
[1771096406107,0.5,87.995,87.97,2.89299553]
[1771096407311,11.3644112,87.994,87.97,2.89299553]
[1771096407687,11.8644112,87.994,87.97,2.89299553]
[1771096407890,0.5,87.993,87.97,2.89299553]
[1771096409207,59.62,88.006,87.97,2.89299553]
[1771096409208,11.36384986,87.999,87.97,2.89299553]
[1771096409402,0.5,87.998,87.97,2.89299553]
[1771096410919,0.5,87.998,87.96,2.89299553]
[1771096411096,11.36402377,87.997,87.96,2.89299553]
[1771096411298,0.5,87.996,87.96,2.89299553]
[1771096412594,0.5,87.994,87.96,2.89299553]
[1771096416615,11.36454036,87.993,87.96,2.89299553]
[1771096416915,0.5,87.992,87.96,2.89299553]
[1771096419018,39.77679535,87.991,87.96,2.89299553]
[1771096419204,0.5,87.99,87.96,2.89299553]
[1771096420513,11.36505699,87.989,87.96,2.89299553]
[1771096420714,0.5,87.988,87.96,2.89299553]
[1771096425429,0.5,87.986,87.96,2.89299553]
[1771096427601,28.41199668,87.991,87.96,2.89299553]
[1771096427602,11.36557367,87.985,87.96,2.89299553]
[1771096427804,0.5,87.984,87.96,2.89299553]
[1771096432827,11.86583203,87.983,87.96,2.89299553]
[1771096433010,0.5,87.982,87.96,2.89730002]
[1771096439316,0.5,87.98,87.96,2.89730002]
[1771096442938,0.5,87.978,87.941,11.37115386]
[1771096443125,0.5,87.978,87.93,2.99730002]
[1771096443309,0.5,87.978,87.94,2.99730002]
[1771096443515,0.5,87.978,87.95,2.89730002]
[1771096444329,39.78222074,87.979,87.95,2.89730002]
[1771096444330,0.5,87.976,87.95,2.89730002]
[1771096445634,0.5,87.976,87.94,2.99730002]
[1771096446439,0.5,87.974,87.95,2.89730002]
[1771096453624,11.367124,87.973,87.95,2.89730002]
[1771096453827,0.5,87.972,87.95,2.89730002]
[1771096457336,0.5,87.97,87.95,2.89730002]
[1771096464944,0.5,87.967,87.94,2.99730002]
[1771096466442,11.36802855,87.966,87.94,2.99730002]
[1771096466641,0.5,87.965,87.94,2.99730002]
[1771096467260,0.5,87.965,87.94,0.1]
[1771096467462,11.36828702,87.964,87.94,0.1]
[1771096467648,0.5,87.963,87.94,0.1]
[1771096475349,0.5,87.961,87.94,0.1]
[1771096475950,0.45709899,87.959,87.933,4.80311685]
[1771096476147,0.45709899,87.959,87.93,0.1]
[1771096479261,0.45709899,87.957,87.93,0.1]
[1771096480665,0.45709899,87.949,87.93,0.1]
[1771096481749,0.48120281,87.969,87.931,0.1]
[1771096481968,0.48120281,87.967,87.931,0.1]
[1771096482848,0.4968448,87.978,87.951,0.1]
[1771096483445,0.4968448,87.984,87.951,0.1]
[1771096483845,0.4968448,87.982,87.952,0.1]
[1771096486472,11.36583203,87.983,87.93,0.1]
[1771096486473,5.85770668,87.959,87.93,0.1]
[1771096486669,0.4968448,87.949,87.93,0.1]
[1771096487773,0.4968448,87.947,87.93,0.1]
[1771096489180,11.37061378,87.946,87.93,0.1]
[1771096489471,0.4968448,87.945,87.93,0.1]
[1771096490572,0.4968448,87.943,87.93,0.1]
[1771096493375,0.4968448,87.941,87.93,0.1]
[1771096495084,0.4968448,87.941,87.91,2.9007231]
[1771096495085,39.79986353,87.94,87.891,47.0]
[1771096495386,0.4968448,87.935,87.911,0.2]
[1771096495775,11.37138958,87.94,87.911,0.2]
[1771096496398,0.4968448,87.939,87.911,0.2]
[1771096498682,0.4968448,87.937,87.911,0.2]
[1771096500686,11.86875164,87.936,87.911,0.2]
[1771096500888,0.4968448,87.935,87.911,0.2]
[1771096501396,0.4968448,87.958,87.913,0.2]
[1771096501562,0.4968448,87.957,87.913,0.2]
[1771096502284,0.4968448,87.957,87.931,0.2]
[1771096502465,0.4968448,87.957,87.913,0.2]
[1771096502668,0.4968448,87.927,87.9,0.1]
[1771096503175,11.37294149,87.928,87.88,0.1]
[1771096503176,0.4968448,87.909,87.88,0.1]
[1771096503588,0.4968448,87.899,87.86,0.1]
[1771096503773,0.4968448,87.899,87.864,11.38110764]
[1771096504369,0.4968448,87.917,87.891,0.4]
[1771096504813,11.8712593,87.917,87.891,0.4]
[1771096505171,0.79699999,87.926,87.86,0.1]
[1771096505172,0.4968448,87.923,87.901,0.4]
[1771096505385,0.4968448,87.923,87.893,0.4]
[1771096505571,0.4968448,87.919,87.885,0.4]
[1771096506285,0.4968448,87.919,87.88,2.9007231]
[1771096506495,11.37332954,87.925,87.86,3.0007231]
[1771096506496,0.4968448,87.906,87.86,3.0007231]
[1771096506673,0.4968448,87.906,87.864,0.4]
[1771096506994,0.4968448,87.904,87.864,0.4]
[1771096507791,0.4968448,87.904,87.87,3.0007231]
[1771096507971,0.4968448,87.904,87.871,0.4]
[1771096509192,0.4968448,87.902,87.871,0.4]
[1771096509768,0.4968448,87.902,87.87,3.0007231]
[1771096509983,0.4968448,87.899,87.87,0.1]
[1771096510186,0.4968448,87.897,87.87,0.1]
[1771096510478,5.36086188,87.898,87.86,0.1]
[1771096510479,0.4968448,87.889,87.86,0.1]
[1771096511420,0.4968448,87.887,87.86,0.1]
[1771096512382,0.4968448,87.877,87.85,0.1]
[1771096513297,0.48062165,87.875,87.85,0.1]
[1771096513473,71.29967135,87.876,87.82,2.9007231]
[1771096513474,0.48062165,87.859,87.82,2.9007231]
[1771096513672,0.48062165,87.859,87.82,3.38048415]
[1771096513873,0.48062165,87.859,87.821,0.47976105]
[1771096514273,0.48062165,87.859,87.79,4.61729252]
[1771096514274,0.48062165,87.849,87.81,2.9007231]
[1771096514482,0.48062165,87.839,87.807,0.47976105]
[1771096514710,0.48062165,87.839,87.786,28.47810108]
[1771096514711,0.48062165,87.829,87.79,2.9007231]
[1771096514992,0.48062165,87.826,87.782,0.47976105]
[1771096515173,11.38718713,87.818,87.782,0.47976105]
[1771096515368,0.48062165,87.817,87.782,0.47976105]
[1771096515899,0.48062165,87.824,87.801,0.47976105]
[1771096516085,0.48062165,87.823,87.801,0.47976105]
[1771096517293,11.38581253,87.829,87.801,0.47976105]
[1771096517795,0.48062165,87.828,87.801,0.47976105]
[1771096518376,7.26199411,87.837,87.811,0.47976105]
[1771096518377,11.38501695,87.835,87.811,0.47976105]
[1771096518683,11.8656386,87.835,87.811,0.47976105]
[1771096518881,0.48062165,87.834,87.811,0.47976105]
[1771096519270,0.48062165,87.832,87.811,0.47976105]
[1771096519690,0.48062165,87.832,87.81,2.9007231]
[1771096520200,0.48062165,87.832,87.803,0.47976105]
[1771096520701,0.48062165,87.832,87.801,0.47976105]
[1771096521398,11.3855017,87.831,87.801,0.47976105]
[1771096521586,0.48062165,87.83,87.801,0.47976105]
[1771096522803,0.48062165,87.83,87.8,2.9007231]
[1771096523095,0.48062165,87.83,87.793,0.47976105]
[1771096523299,0.48062165,87.83,87.8,2.9007231]
[1771096524796,11.38576096,87.829,87.8,2.9007231]
[1771096524995,0.48062165,87.828,87.8,2.9007231]
[1771096525803,0.48062165,87.828,87.801,0.47976105]
[1771096526999,0.48062165,87.826,87.8,2.9007231]
[1771096527381,0.48062165,87.826,87.794,0.47976105]
[1771096527600,0.48062165,87.826,87.79,2.9007231]
[1771096528484,11.38602024,87.827,87.782,0.47976105]
[1771096528485,0.48062165,87.824,87.782,0.47976105]
[1771096528686,0.48062165,87.819,87.782,0.47976105]
[1771096529088,0.48062165,87.817,87.782,0.47976105]
[1771096529298,0.48062165,87.809,87.78,0.1]
[1771096530199,0.48062165,87.809,87.781,0.47976105]
[1771096530501,0.48062165,87.812,87.784,0.47976105]
[1771096530895,0.48062165,87.812,87.78,0.1]
[1771096531285,60.06,87.813,87.761,0.47976105]
[1771096531286,0.48062165,87.798,87.761,0.47976105]
[1771096531504,0.48062165,87.796,87.761,0.47976105]
[1771096531918,60.06,87.797,87.74,2.9007231]
[1771096531919,0.48062165,87.778,87.74,2.9007231]
[1771096532402,0.48062165,87.776,87.74,2.9007231]
[1771096532802,0.48062165,87.774,87.711,11.40107854]
[1771096533111,0.48062165,87.768,87.73,2.9007231]
[1771096533296,0.48062165,87.766,87.73,2.9007231]
[1771096533917,0.48062165,87.766,87.731,0.47976105]
[1771096534307,11.39419351,87.764,87.733,0.47976105]
[1771096534513,11.39419351,87.764,87.741,0.47976105]
[1771096534889,11.392506,87.777,87.741,0.47976105]
[1771096535108,11.392506,87.777,87.732,11.39834951]
[1771096535109,11.392506,87.777,87.751,0.47976105]
[1771096536499,0.60182231,87.779,87.761,0.47976105]
[1771096537814,0.48062165,87.777,87.74,0.47976105]
[1771096538312,0.48062165,87.774,87.74,0.47976105]
[1771096538691,0.48062165,87.774,87.741,0.47976105]
[1771096538890,39.87467957,87.775,87.751,0.47976105]
[1771096539512,0.60182231,87.779,87.751,0.47976105]
[1771096539702,11.39237622,87.778,87.751,0.47976105]
[1771096540405,0.48062165,87.777,87.751,0.47976105]
[1771096540716,0.48062165,87.777,87.732,0.47976105]
[1771096540894,0.48062165,87.777,87.741,0.47976105]
[1771096542404,11.3926358,87.776,87.742,11.39705044]
[1771096542589,11.3926358,87.776,87.743,0.48161525]
[1771096542792,11.88526814,87.776,87.743,0.48161525]
[1771096543195,0.46270451,87.775,87.743,0.48161525]
[1771096543916,39.8742253,87.776,87.743,0.48161525]
[1771096544117,40.33692981,87.776,87.743,0.48161525]
[1771096544413,0.46270451,87.775,87.743,0.48161525]
[1771096544600,11.39289539,87.774,87.743,0.48161525]
[1771096544914,0.46270451,87.773,87.743,0.48161525]
[1771096547017,0.46270451,87.771,87.743,0.48161525]
[1771096548011,0.46270451,87.771,87.738,0.46224423]
[1771096548414,0.46270451,87.769,87.738,0.46224423]
[1771096549215,0.60182231,87.779,87.711,0.46224423]
[1771096549216,0.46270451,87.747,87.711,0.46224423]
[1771096549516,0.46270451,87.739,87.711,0.46224423]
[1771096549922,0.46270451,87.729,87.71,0.1]
[1771096550505,0.46270451,87.737,87.711,0.46224423]
[1771096551021,11.39782985,87.736,87.711,0.46224423]
[1771096551220,71.73782985,87.736,87.711,0.46224423]
[1771096551424,11.39782985,87.736,87.711,0.46224423]
[1771096552818,60.34,87.746,87.713,0.46224423]
[1771096553021,60.34,87.746,87.721,0.46224423]
[1771096553022,11.39666077,87.745,87.721,0.46224423]
[1771096556508,28.4868042,87.76,87.731,0.46224423]
[1771096556713,60.42,87.759,87.731,0.46224423]
[1771096557107,60.42,87.759,87.74,7.28335741]
[1771096557420,11.39333921,87.771,87.741,0.46224423]
[1771096557618,11.39278017,87.775,87.751,0.46224423]
[1771096559507,0.46270451,87.774,87.751,0.46224423]
[1771096559827,0.46270451,87.774,87.75,7.28335741]
[1771096560528,0.46270451,87.772,87.75,7.28335741]
[1771096560716,0.46270451,87.772,87.75,7.74560164]
[1771096562023,0.46270451,87.77,87.722,0.46224423]
[1771096562222,0.46270451,87.759,87.722,0.46224423]
[1771096562425,0.46270451,87.757,87.714,0.46224423]
[1771096562635,0.46270451,87.755,87.714,0.46224423]
[1771096562832,0.46270451,87.755,87.71,7.38335741]
[1771096562833,0.46270451,87.747,87.71,7.38335741]
[1771096563134,0.46270451,87.737,87.71,0.1]
[1771096563944,39.89240448,87.736,87.71,0.1]
[1771096564138,0.46270451,87.735,87.71,0.1]
[1771096565038,0.46270451,87.733,87.71,0.1]
[1771096565338,0.46270451,87.731,87.71,0.1]
[1771096566125,0.46270451,87.729,87.71,0.1]
[1771096567418,11.86157374,87.728,87.71,0.1]
[1771096568315,0.46270451,87.727,87.71,0.1]
[1771096568517,11.3991291,87.726,87.71,0.1]
[1771096569229,11.3991291,87.726,87.711,0.46224423]
[1771096569422,11.39795976,87.735,87.711,0.46224423]
[1771096569626,0.46270451,87.734,87.711,0.46224423]
[1771096569821,0.46270451,87.734,87.71,7.38335741]
[1771096570224,0.46270451,87.734,87.71,0.1]
[1771096570625,0.46270451,87.732,87.71,7.38335741]
[1771096570819,0.46270451,87.732,87.71,7.84560164]
[1771096571012,0.46270451,87.731,87.71,0.1]
[1771096571217,0.46270451,87.729,87.71,0.1]
[1771096572843,0.45294799,87.727,87.71,0.1]
[1771096573136,0.45294799,87.727,87.675,28.51433349]
[1771096573137,0.45294799,87.718,87.67,7.28335741]
[1771096573346,0.45294799,87.709,87.666,0.48200929]
[1771096573947,60.76,87.717,87.666,0.48200929]
[1771096573948,7.28335741,87.7,87.666,0.48200929]
[1771096574241,7.28335741,87.7,87.605,56.96079722]
[1771096574242,0.45294799,87.695,87.62,0.1]
[1771096574537,0.45294799,87.693,87.67,7.28335741]
[1771096574832,60.76,87.694,87.66,7.28335741]
[1771096574833,0.45294799,87.691,87.66,7.28335741]
[1771096575040,0.45294799,87.691,87.66,2.91744667]
[1771096575342,60.78,87.69,87.66,2.91744667]
[1771096575523,0.45294799,87.689,87.66,2.91744667]
[1771096575727,0.45294799,87.689,87.65,3.01744667]
[1771096575933,0.45294799,87.687,87.65,3.01744667]
[1771096576435,39.91242074,87.692,87.671,0.48200929]
[1771096576436,11.40354878,87.692,87.671,0.48200929]
[1771096577438,0.45294799,87.691,87.661,0.48200929]
[1771096579327,11.40380887,87.69,87.661,0.48200929]
[1771096580150,11.4032464,87.695,87.661,0.48200929]
[1771096580330,59.06,87.705,87.671,0.48200929]
[1771096580641,0.45294799,87.704,87.671,0.48200929]
[1771096581024,0.45294799,87.697,87.653,0.48200929]
[1771096581219,5.36086188,87.698,87.653,0.48200929]
[1771096581220,0.45294799,87.689,87.653,0.48200929]
[1771096581438,0.45294799,87.687,87.653,0.48200929]
[1771096582252,0.45294799,87.687,87.65,0.1]
[1771096582451,0.45294799,87.685,87.65,0.1]
[1771096582654,0.45294799,87.685,87.65,0.58200929]
[1771096582831,0.45294799,87.685,87.65,3.49945596]
[1771096583039,0.45294799,87.685,87.65,0.1]
[1771096583237,0.45294799,87.685,87.65,3.01744667]
[1771096583441,11.4045892,87.684,87.65,3.01744667]
[1771096583742,0.45294799,87.683,87.65,3.01744667]
[1771096584141,0.45294799,87.683,87.65,0.1]
[1771096584361,0.45294799,87.678,87.65,0.1]
[1771096584731,60.88,87.679,87.651,0.48200929]
[1771096585450,0.45294799,87.677,87.65,0.1]
[1771096587262,11.40536964,87.678,87.651,0.48200929]
[1771096587755,0.45294799,87.677,87.65,0.1]
[1771096587945,0.45294799,87.667,87.621,0.48200929]
[1771096588270,5.36086188,87.668,87.621,0.48200929]
[1771096588271,0.45294799,87.665,87.621,0.48200929]
[1771096588557,50.0,87.666,87.621,0.48200929]
[1771096588558,0.45294799,87.659,87.621,0.48200929]
[1771096589359,0.45294799,87.657,87.621,0.48200929]
[1771096589656,0.45294799,87.655,87.621,0.48200929]
[1771096590736,0.45294799,87.649,87.62,0.1]
[1771096591346,60.96,87.648,87.62,0.1]
[1771096591546,0.45294799,87.647,87.62,0.1]
[1771096591765,0.45294799,87.645,87.63,7.2999298]
[1771096591944,11.4095338,87.646,87.63,7.2999298]
[1771096592344,0.45294799,87.645,87.621,0.48200929]
[1771096592948,0.45294799,87.645,87.62,7.3999298]
[1771096593241,0.45294799,87.645,87.62,7.88193909]
[1771096593447,0.45294799,87.645,87.62,7.3999298]
[1771096594067,11.86274215,87.644,87.62,7.3999298]
[1771096594368,11.86274215,87.644,87.62,7.88193909]
[1771096594874,0.45294799,87.643,87.62,0.1]
[1771096595370,0.45294799,87.643,87.62,7.3999298]
[1771096596165,0.45294799,87.641,87.62,0.1]
[1771096596366,0.45294799,87.639,87.61,7.2999298]
[1771096596746,0.45294799,87.639,87.611,0.48200929]
[1771096597348,0.45294799,87.639,87.62,7.2999298]
[1771096597570,61.1,87.638,87.62,7.2999298]
[1771096597749,0.45294799,87.637,87.62,7.2999298]
[1771096597949,0.45294799,87.637,87.611,0.48200929]
[1771096598353,11.41096593,87.635,87.611,0.48200929]
[1771096598745,0.45294799,87.634,87.611,0.48200929]
[1771096598943,61.14,87.633,87.611,0.48200929]
[1771096599664,0.45294799,87.634,87.611,0.48200929]
[1771096599864,61.14,87.632,87.611,0.48200929]
[1771096600066,61.14,87.645,87.621,0.48200929]
[1771096600271,61.14,87.645,87.631,0.48200929]
[1771096600666,11.40979416,87.644,87.624,0.48200929]
[1771096601167,61.14,87.645,87.63,7.2999298]
[1771096601366,61.16,87.644,87.631,0.49594228]
[1771096601558,11.40769202,87.661,87.631,0.49594228]
[1771096601756,61.16,87.656,87.631,0.49594228]
[1771096601960,61.16,87.656,87.64,7.79587208]
[1771096603065,61.16,87.656,87.64,7.2999298]
[1771096603345,11.40703312,87.666,87.65,7.2999298]
[1771096603552,0.29699999,87.657,87.65,7.2999298]
[1771096604263,73.0449804,87.672,87.65,7.2999298]
[1771096604571,0.48950464,87.671,87.65,7.2999298]
[1771096605175,11.4064104,87.67,87.65,7.2999298]
[1771096605673,57.01590472,87.695,87.63,28.52882969]
[1771096605674,0.48950464,87.685,87.66,7.2999298]
[1771096605869,0.48950464,87.692,87.67,7.2999298]
[1771096606072,33.94950464,87.692,87.67,7.2999298]
[1771096606479,33.94950464,87.692,87.68,7.2999298]
[1771096606976,33.46,87.692,87.68,7.2999298]
[1771096607274,0.5,87.719,87.68,18.70492597]
[1771096607472,15.9,87.735,87.69,7.2999298]
[1771096607676,0.5,87.734,87.69,7.2999298]
[1771096607858,0.5,87.724,87.68,7.2999298]
[1771096608377,0.5,87.724,87.69,7.2999298]
[1771096608579,0.5,87.722,87.69,7.2999298]
[1771096608778,0.5,87.722,87.68,7.2999298]
[1771096609275,61.22,87.723,87.68,7.2999298]
[1771096609276,0.5,87.72,87.68,7.2999298]
[1771096609982,0.5,87.72,87.669,11.40651519]
[1771096610176,0.5,87.72,87.68,7.2999298]
[1771096610382,0.5,87.72,87.69,7.2999298]
[1771096610680,0.5,87.72,87.664,11.40709246]
[1771096610889,0.5,87.72,87.68,2.91586]
[1771096611065,0.5,87.718,87.68,2.91586]
[1771096611385,0.5,87.716,87.68,2.91586]
[1771096612380,0.5,87.712,87.68,2.91586]
[1771096613771,0.5,87.712,87.681,0.05747498]
[1771096614485,101.12286501,87.713,87.68,2.91586]
[1771096614486,0.5,87.71,87.68,2.91586]
[1771096614963,0.5,87.71,87.68,2.916268]
[1771096615787,39.90377489,87.711,87.681,0.4889185]
[1771096617773,0.45881747,87.71,87.681,0.4889185]
[1771096618080,0.45881747,87.708,87.681,0.4889185]
[1771096619980,0.45881747,87.708,87.68,2.916268]
[1771096620284,2.916268,87.72,87.661,0.4889185]
[1771096620285,2.916268,87.69,87.661,0.4889185]
[1771096620485,5.36086188,87.705,87.621,47.0]
[1771096620486,0.45881747,87.679,87.641,0.4889185]
[1771096620702,0.45881747,87.677,87.641,0.4889185]
[1771096620995,2.916268,87.69,87.641,0.4889185]
[1771096620996,0.45881747,87.675,87.641,0.4889185]
[1771096622188,0.45881747,87.673,87.641,0.4889185]
[1771096623102,0.45881747,87.673,87.611,47.8]
[1771096623103,28.50828869,87.694,87.661,0.4889185]
[1771096623392,28.50828869,87.694,87.66,2.916268]
[1771096623393,28.50828869,87.694,87.671,0.4889185]
[1771096624191,11.40276859,87.698,87.68,2.916268]
[1771096624373,11.40276859,87.698,87.673,0.4889185]
[1771096624576,11.86158606,87.698,87.673,0.4889185]
[1771096625700,11.40276859,87.698,87.681,0.4889185]
[1771096626000,35.67539474,87.706,87.691,0.4889185]
[1771096626001,7.17099026,87.706,87.691,0.4889185]
[1771096626174,7.17099026,87.706,87.7,2.916268]
[1771096626374,7.17099026,87.706,87.691,0.4889185]
[1771096626575,2.916268,87.74,87.655,167.6]
[1771096626576,0.65316777,87.726,87.7,2.916268]
[1771096626796,11.39950633,87.724,87.7,2.916268]
[1771096626993,0.65316777,87.723,87.7,7.28591783]
[1771096627583,0.65316777,87.723,87.694,0.0235738]
[1771096627899,0.65316777,87.719,87.68,7.28591783]
[1771096628274,0.65316777,87.717,87.671,0.04687683]
[1771096628694,0.65316777,87.717,87.68,7.28591783]
[1771096629071,0.65316777,87.717,87.681,0.0699122]
[1771096629999,0.65316777,87.717,87.69,7.28591783]
[1771096630197,0.65316777,87.717,87.691,0.09268299]
[1771096630984,11.40042865,87.716,87.691,0.09268299]
[1771096631801,0.79699999,87.737,87.691,0.09268299]
[1771096631802,72.79962213,87.723,87.71,7.28591783]
[1771096632501,0.65316777,87.733,87.71,7.28591783]
[1771096632804,0.65316777,87.733,87.691,11.40367882]
[1771096632805,11.39852286,87.731,87.72,7.28591783]
[1771096633108,0.71525623,87.73,87.7,7.28591783]
[1771096633878,0.79699999,87.737,87.721,0.69342613]
[1771096634083,0.79699999,87.737,87.73,7.28591783]
[1771096634308,7.28591783,87.77,87.73,7.28591783]
[1771096634309,11.39224643,87.779,87.731,0.11140641]
[1771096634488,28.4814554,87.777,87.73,7.28591783]
[1771096634807,5.36086188,87.776,87.74,7.28591783]
[1771096635317,5.36086188,87.774,87.73,7.41625732]
[1771096635508,61.48,87.773,87.731,0.13033949]
[1771096635709,61.48,87.772,87.74,7.28591783]
[1771096635890,0.71525623,87.771,87.74,7.28591783]
[1771096636096,11.39276559,87.775,87.76,7.28591783]
[1771096636298,0.71525623,87.774,87.75,7.28591783]
[1771096637193,0.71525623,87.772,87.718,0.16755575]
[1771096637397,0.71525623,87.772,87.74,7.28591783]
[1771096637612,11.39302518,87.773,87.75,7.28591783]
[1771096638592,11.39247044,87.778,87.75,7.28591783]
[1771096639103,0.2,87.78,87.76,7.47783837]
[1771096639407,0.00807946,87.78,87.77,7.28591783]
[1771096639713,0.91525623,87.8,87.77,7.28591783]
[1771096639714,0.2,87.8,87.77,7.28591783]
[1771096639922,0.2,87.8,87.79,7.28591783]
[1771096640113,0.78999992,87.796,87.77,7.28591783]
[1771096640322,0.78999992,87.796,87.78,7.28591783]
[1771096640498,11.38991081,87.797,87.78,7.28591783]
[1771096640706,0.78999992,87.796,87.78,7.28591783]
[1771096641221,0.78999992,87.796,87.77,7.28591783]
[1771096641405,0.78999992,87.794,87.76,7.28591783]
[1771096641603,11.58955468,87.8,87.78,7.28591783]
[1771096642219,0.2,87.8,87.78,7.28591783]
[1771096643624,12.18686216,87.798,87.78,7.28591783]
[1771096643824,0.79699999,87.798,87.79,7.28591783]
[1771096645707,0.79699999,87.798,87.777,0.06490489]
[1771096645708,0.79699999,87.798,87.78,7.28591783]
[1771096646539,0.79699999,87.798,87.754,28.48872985]
[1771096646540,0.68362938,87.798,87.79,7.28591783]
[1771096646705,11.38717606,87.819,87.79,7.28591783]
[1771096647020,11.38717606,87.819,87.8,7.28591783]
[1771096647227,0.84668522,87.823,87.8,7.28591783]
[1771096647528,11.38666848,87.822,87.8,7.28591783]
[1771096648725,0.84668522,87.823,87.81,7.28591783]
[1771096648911,12.23329146,87.823,87.8,2.90762704]
[1771096650030,0.84668522,87.82,87.79,2.90762704]
[1771096650326,0.84668522,87.82,87.78,2.97080879]
[1771096650627,0.84668522,87.82,87.79,2.90762704]
[1771096651137,0.84668522,87.82,87.8,2.90762704]
[1771096651432,0.84668522,87.82,87.78,11.39208361]
[1771096651433,0.84668522,87.825,87.789,0.07852624]
[1771096651605,0.84668522,87.825,87.8,2.90762704]
[1771096651811,0.84668522,87.825,87.79,2.90762704]
[1771096652319,0.84668522,87.823,87.79,2.90762704]
[1771096653503,0.84668522,87.821,87.789,0.07852624]
[1771096653830,0.84668522,87.821,87.79,2.90762704]
[1771096654305,0.84668522,87.819,87.775,11.51865243]
[1771096654625,0.84668522,87.819,87.78,2.90762704]
[1771096654938,39.8533397,87.822,87.768,47.22]
[1771096654939,0.84668522,87.809,87.77,2.90762704]
[1771096655132,0.84668522,87.809,87.771,0.14131245]
[1771096655636,0.84668522,87.807,87.771,0.14131245]
[1771096656237,0.84668522,87.807,87.772,0.15656088]
[1771096656815,0.84668522,87.807,87.77,2.90762704]
[1771096657131,0.84668522,87.807,87.768,47.22]
[1771096658131,11.38874336,87.806,87.768,47.22]
[1771096658425,0.34668522,87.805,87.765,11.55062038]
[1771096658625,0.34668522,87.805,87.771,0.68653432]
[1771096659823,11.38900277,87.804,87.773,0.69342613]
[1771096660512,0.71525623,87.803,87.773,0.69342613]
[1771096661734,11.38900277,87.804,87.773,0.69342613]
[1771096661912,0.8961187,87.803,87.773,0.69342613]
[1771096662628,0.8961187,87.803,87.766,0.75850692]
[1771096663124,0.8961187,87.803,87.771,0.78615191]
[1771096664533,11.3892622,87.802,87.771,0.78615191]
[1771096664831,0.94255834,87.801,87.771,0.78615191]
[1771096665327,0.94255834,87.801,87.764,0.81925226]
[1771096665835,0.94255834,87.801,87.765,58.39406369]
[1771096666335,0.94255834,87.801,87.765,59.22958153]
[1771096668039,0.94255834,87.799,87.766,0.86749067]
[1771096669533,11.38896661,87.805,87.771,0.88320219]
[1771096670136,11.38896661,87.805,87.773,0.89873325]
[1771096671937,0.94255834,87.805,87.773,0.89873325]
[1771096673043,0.94255834,87.805,87.758,48.20162118]
[1771096673344,0.94255834,87.805,87.758,0.92162118]
[1771096673842,0.94255834,87.805,87.771,0.92162118]
[1771096674843,0.94255834,87.803,87.771,0.92162118]
[1771096675441,12.33083722,87.81,87.773,0.92162118]
[1771096675747,0.94255834,87.809,87.773,0.92162118]
[1771096676951,12.32987514,87.817,87.782,0.92162118]
[1771096677250,0.94255834,87.816,87.782,0.92162118]
[1771096678944,0.94255834,87.816,87.772,75.48288748]
[1771096678945,0.94255834,87.814,87.776,11.39263316]
[1771096679634,62.36255834,87.82,87.781,0.92162118]
[1771096679818,11.38705747,87.819,87.79,2.90879391]
[1771096680021,0.94255834,87.818,87.791,0.92162118]
[1771096680220,0.94255834,87.818,87.78,2.90879391]
[1771096680221,0.94255834,87.818,87.784,0.92162118]
[1771096680420,11.38576096,87.829,87.801,0.92162118]
[1771096680637,0.2,87.83,87.82,2.90879391]
[1771096680819,0.94255834,87.854,87.821,0.92162118]
[1771096681025,11.38265056,87.853,87.823,0.85824049]
[1771096681220,0.94255834,87.852,87.823,0.85824049]
[1771096682142,0.94255834,87.852,87.83,2.90879391]
[1771096682332,0.94255834,87.852,87.811,0.87176105]
[1771096682645,0.94255834,87.846,87.806,47.38]
[1771096683142,0.94255834,87.844,87.806,48.26512633]
[1771096683518,0.94255834,87.829,87.79,3.79392024]
[1771096683918,0.94255834,87.837,87.801,0.89833808]
[1771096686246,0.94255834,87.835,87.801,0.89833808]
[1771096687542,0.94255834,87.833,87.801,0.89833808]
[1771096690135,28.46213397,87.836,87.801,0.89833808]
[1771096690136,0.94255834,87.831,87.801,0.89833808]
[1771096692455,0.94255834,87.829,87.801,0.89833808]
[1771096694853,1.15911318,87.827,87.801,0.89833808]
[1771096697541,12.54526306,87.826,87.801,0.89833808]
[1771096697748,1.15911318,87.825,87.801,0.89833808]
[1771096697954,1.15911318,87.822,87.781,1.06193567]
[1771096698158,1.15911318,87.822,87.79,3.97072958]
[1771096698361,1.15911318,87.822,87.791,1.06193567]